bitfinex/quotes_BTCUSD_20250519
["timestamp","ask_amount","ask_price","bid_price","bid_amount"]
[1747668397911,0.00347892,104480.0,104470.0,1.06110414]
[1747668399761,0.00347892,104480.0,104470.0,0.67182414]
[1747668399990,0.00347892,104480.0,104470.0,1.06098414]
[1747668400850,0.69858725,104500.0,104490.0,0.56011564]
[1747668401055,0.69873085,104500.0,104490.0,0.85222504]
[1747668401764,0.69273085,104500.0,104490.0,0.85222504]
[1747668401975,0.70229949,104500.0,104490.0,0.85222504]
[1747668402180,0.71186822,104500.0,104490.0,0.85222504]
[1747668402339,0.69273085,104500.0,104490.0,0.85222504]
[1747668402564,0.7022994,104500.0,104490.0,0.85422504]
[1747668402746,0.7022994,104500.0,104490.0,0.85622504]
[1747668402951,0.69273085,104500.0,104490.0,0.85622504]
[1747668403173,0.69273085,104500.0,104490.0,2.40674304]
[1747668403339,0.69273085,104500.0,104490.0,1.73515304]
[1747668403544,0.69273085,104500.0,104490.0,1.52512604]
[1747668404499,0.61058674,104500.0,104490.0,1.56797057]
[1747668404729,0.59605674,104500.0,104490.0,1.63307057]
[1747668406688,0.52064674,104500.0,104490.0,1.63307057]
[1747668406890,0.47282212,104500.0,104490.0,1.63307057]
[1747668407099,0.45347213,104500.0,104490.0,1.63307057]
[1747668407668,0.45347213,104500.0,104490.0,1.56797057]
[1747668408481,0.45347213,104500.0,104490.0,1.38439735]
[1747668408677,0.44842214,104500.0,104490.0,1.41310712]
[1747668408851,0.40061186,104500.0,104490.0,1.41310712]
[1747668409058,0.40061186,104500.0,104490.0,1.44530712]
[1747668409623,0.31222386,104500.0,104490.0,1.49294797]
[1747668409844,0.28613386,104500.0,104490.0,1.49294797]
[1747668410143,0.26604386,104500.0,104490.0,1.68722797]
[1747668410563,0.26604386,104500.0,104490.0,1.68674797]
[1747668410715,0.26604386,104500.0,104490.0,1.60690712]
[1747668413250,0.09360354,104510.0,104500.0,0.56009457]
[1747668413661,0.08403554,104510.0,104500.0,0.56009457]
[1747668414471,0.003,104510.0,104500.0,0.56009457]
[1747668414798,0.003,104510.0,104500.0,2.47115197]
[1747668415430,0.01256763,104510.0,104500.0,1.00238597]
[1747668415633,0.01256763,104510.0,104500.0,0.84346097]
[1747668415824,0.04286763,104510.0,104500.0,0.84346097]
[1747668415970,0.0333,104510.0,104500.0,0.84346097]
[1747668416372,0.0333,104510.0,104500.0,0.84246097]
[1747668416594,0.0323,104510.0,104500.0,0.84446097]
[1747668417013,0.0323,104510.0,104500.0,0.84646097]
[1747668417210,0.0263,104510.0,104500.0,0.84646097]
[1747668417849,0.0591,104510.0,104500.0,0.84646097]
[1747668417979,0.06866772,104510.0,104500.0,0.84646097]
[1747668418183,0.08780363,104510.0,104500.0,0.84646097]
[1747668418384,0.2696056,104510.0,104500.0,0.19824]
[1747668418570,0.2696056,104510.0,104500.0,0.004]
[1747668420303,0.366915,104510.0,104500.0,0.004]
[1747668420515,1.16498409,104510.0,104500.0,0.004]
[1747668420727,1.17952494,104510.0,104500.0,0.004]
[1747668420929,1.17952494,104510.0,104480.0,0.002]
[1747668420930,0.27304581,104490.0,104480.0,0.002]
[1747668421134,0.56459521,104490.0,104480.0,0.0021436]
[1747668421635,0.57913606,104490.0,104480.0,0.0021436]
[1747668422288,0.57913606,104490.0,104480.0,0.0041436]
[1747668422502,0.37035521,104490.0,104480.0,0.0041436]
[1747668422715,0.37035521,104490.0,104480.0,0.0021436]
[1747668422925,0.27304581,104490.0,104480.0,0.0021436]
[1747668423126,0.27504581,104490.0,104480.0,0.0021436]
[1747668423547,0.27504581,104490.0,104480.0,0.0031436]
[1747668423719,0.27504581,104490.0,104480.0,0.0021436]
[1747668424164,0.27804581,104490.0,104480.0,0.0031436]
[1747668424981,0.2684757,104490.0,104480.0,0.0031436]
[1747668425184,0.27804581,104490.0,104480.0,0.0031436]
[1747668427505,0.26847598,104490.0,104480.0,0.0031436]
[1747668428341,0.36578538,104490.0,104480.0,0.0031436]
[1747668428817,0.62961447,104490.0,104480.0,0.0031436]
[1747668429048,0.83843532,104490.0,104480.0,0.0031436]
[1747668429266,0.57460623,104490.0,104480.0,0.0031436]
[1747668429482,0.83843532,104490.0,104480.0,0.0031436]
[1747668430400,0.56006538,104490.0,104480.0,0.0031436]
[1747668430613,0.75434538,104490.0,104480.0,0.0031436]
[1747668430836,0.56002538,104490.0,104480.0,0.0031436]
[1747668431509,0.36578538,104490.0,104480.0,0.0031436]
[1747668431690,0.26847598,104490.0,104480.0,0.0031436]
[1747668432396,0.26847598,104490.0,104480.0,0.2041389]
[1747668432618,0.26847598,104490.0,104480.0,0.20413881]
[1747668432864,0.26247598,104490.0,104480.0,0.0031436]
[1747668433085,0.25290587,104490.0,104480.0,0.0031436]
[1747668435379,0.25290587,104490.0,104480.0,0.19456779]
[1747668435574,0.23087598,104490.0,104480.0,0.2232803]
[1747668435812,0.24644581,104490.0,104480.0,0.2041389]
[1747668436016,0.24644581,104490.0,104480.0,0.21370992]
[1747668436223,0.24644581,104490.0,104480.0,0.22328085]
[1747668436928,0.24644581,104490.0,104480.0,0.21370992]
[1747668437688,0.27794581,104490.0,104480.0,0.21370992]
[1747668438111,0.26837598,104490.0,104480.0,0.2041389]
[1747668438818,0.26837598,104490.0,104480.0,0.21370983]
[1747668438958,0.20597598,104490.0,104480.0,0.22328067]
[1747668439371,0.005,104490.0,104480.0,0.22328067]
[1747668439570,0.22511546,104490.0,104480.0,0.23285142]
[1747668439779,0.23468547,104490.0,104480.0,0.24242208]
[1747668440394,0.005,104490.0,104480.0,2.08531211]
[1747668440606,0.005,104490.0,104480.0,2.10985296]
[1747668440820,0.005,104490.0,104480.0,2.13620177]
[1747668441228,0.22962169,104520.0,104510.0,0.54093751]
[1747668441442,0.22005433,104520.0,104510.0,0.5649498]
[1747668442480,0.00956681,104520.0,104510.0,0.57451744]
[1747668442703,0.0221338,104520.0,104510.0,0.57551744]
[1747668443113,0.04326815,104520.0,104510.0,0.23651744]
[1747668443322,0.04326806,104520.0,104510.0,0.23651744]
[1747668443729,0.28655301,104520.0,104510.0,0.002]
[1747668443969,0.27698574,104520.0,104510.0,0.002]
[1747668444754,0.03370171,104520.0,104510.0,0.21489773]
[1747668445119,0.23462018,104520.0,104510.0,0.55250588]
[1747668445300,0.27450592,104520.0,104510.0,0.55720695]
[1747668445545,0.26493847,104520.0,104510.0,0.55720686]
[1747668446168,0.20343847,104520.0,104510.0,0.55720686]
[1747668446370,0.26493847,104520.0,104510.0,0.55720695]
[1747668446577,0.26493847,104520.0,104510.0,0.56677532]
[1747668446993,0.26493847,104520.0,104510.0,0.55720695]
[1747668447197,0.25537093,104520.0,104510.0,0.55720695]
[1747668447407,0.25537093,104520.0,104510.0,0.002]
[1747668447608,0.25537093,104520.0,104510.0,0.342]
[1747668449288,0.24937093,104520.0,104510.0,0.342]
[1747668449496,0.24937093,104520.0,104510.0,0.53336924]
[1747668449714,0.24937093,104520.0,104510.0,0.5429377]
[1747668449921,0.01913444,104520.0,104510.0,0.57164198]
[1747668450311,0.0382687,104520.0,104510.0,0.57164198]
[1747668450576,0.22961963,104520.0,104510.0,0.57164198]
[1747668450780,0.22961963,104520.0,104510.0,0.56207416]
[1747668450986,0.22961963,104520.0,104510.0,0.57164216]
[1747668451188,0.22005282,104520.0,104510.0,0.56207434]
[1747668451362,0.25275282,104520.0,104510.0,0.56207434]
[1747668451824,0.22005218,104520.0,104510.0,0.57164215]
[1747668452000,0.22961972,104520.0,104510.0,0.58121006]
[1747668452713,0.03826879,104520.0,104510.0,0.58121006]
[1747668452921,0.02870125,104520.0,104510.0,0.58120951]
[1747668453123,0.22961963,104520.0,104510.0,0.58120951]
[1747668453714,0.02870116,104520.0,104510.0,0.58120951]
[1747668454120,0.03826852,104520.0,104510.0,0.58120951]
[1747668454327,0.22961945,104520.0,104510.0,0.56207378]
[1747668454556,0.22961945,104520.0,104510.0,0.58120969]
[1747668454748,0.22961945,104520.0,104510.0,0.59534267]
[1747668455043,0.03826852,104520.0,104510.0,0.59534222]
[1747668456000,0.23918699,104520.0,104510.0,0.59534222]
[1747668456653,0.04783606,104520.0,104510.0,0.59534222]
[1747668456866,0.03826925,104520.0,104510.0,0.59534222]
[1747668457105,0.02870116,104520.0,104510.0,0.59534222]
[1747668457298,0.48014614,104530.0,104520.0,0.56005292]
[1747668457536,0.48014614,104530.0,104520.0,0.55048592]
[1747668458619,0.47057988,104530.0,104520.0,0.55048592]
[1747668459020,0.47357988,104530.0,104520.0,0.55048592]
[1747668459629,0.47367168,104530.0,104520.0,0.55048592]
[1747668459951,0.47567168,104530.0,104520.0,0.55048592]
[1747668460160,0.48523794,104530.0,104520.0,0.56005328]
[1747668460396,0.48523831,104530.0,104520.0,0.54091847]
[1747668460604,0.48523831,104530.0,104520.0,0.34]
[1747668461017,0.48523831,104530.0,104520.0,0.53135093]
[1747668461442,0.48523831,104530.0,104520.0,0.34]
[1747668461640,0.48523831,104530.0,104520.0,0.53135093]
[1747668462280,0.48523831,104530.0,104520.0,0.34]
[1747668462491,0.25275093,104520.0,104500.0,0.003367]
[1747668462693,0.26233751,104510.0,104500.0,0.003367]
[1747668463826,0.26233751,104510.0,104500.0,0.005367]
[1747668463978,0.26233751,104510.0,104500.0,0.345367]
[1747668464183,0.26233751,104510.0,104500.0,0.006367]
[1747668464385,0.26233751,104510.0,104500.0,0.346367]
[1747668464587,0.25633751,104510.0,104500.0,0.346367]
[1747668465203,0.25633751,104510.0,104500.0,0.342]
[1747668465553,0.25633751,104510.0,104500.0,0.34]
[1747668465760,0.25733751,104510.0,104500.0,0.34]
[1747668465965,0.25733751,104510.0,104500.0,0.342]
[1747668466620,0.25733751,104510.0,104500.0,0.34]
[1747668466823,0.25733751,104510.0,104500.0,0.53138755]
[1747668467462,0.25733751,104510.0,104500.0,0.34]
[1747668472350,0.25133751,104510.0,104500.0,0.34]
[1747668472693,0.21052547,104500.0,104490.0,0.22011324]
[1747668472924,0.24222574,104500.0,104490.0,0.21054332]
[1747668473790,0.24222574,104500.0,104490.0,0.20097321]
[1747668473925,0.24222574,104500.0,104490.0,0.20297321]
[1747668474319,0.23265692,104500.0,104490.0,0.004]
[1747668475343,0.26465692,104500.0,104490.0,0.004]
[1747668475579,0.26465692,104500.0,104490.0,0.002]
[1747668475784,0.26465692,104500.0,104480.0,0.0366385]
[1747668475987,0.26357598,104490.0,104480.0,0.0366385]
[1747668476188,0.26357598,104490.0,104480.0,0.22806269]
[1747668477033,0.26357598,104490.0,104480.0,0.0366385]
[1747668477232,0.26357598,104490.0,104480.0,0.22820629]
[1747668477447,0.26357598,104490.0,104480.0,0.23020629]
[1747668477655,0.26357598,104490.0,104480.0,0.23220629]
[1747668478078,0.27314599,104490.0,104480.0,0.24177731]
[1747668478492,0.02870986,104490.0,104480.0,0.26091871]
[1747668478697,0.00956919,104500.0,104490.0,0.21054599]
[1747668478899,0.22966358,104500.0,104490.0,0.21054599]
[1747668479109,0.22009494,104500.0,104490.0,0.21054599]
[1747668479312,0.21052602,104500.0,104490.0,0.20097607]
[1747668479519,0.20095692,104500.0,104490.0,0.21054618]
[1747668479702,0.23095692,104500.0,104490.0,0.21054618]
[1747668480056,0.20452602,104500.0,104490.0,0.22011601]
[1747668480253,0.20452602,104500.0,104490.0,0.21054618]
[1747668480695,0.19495692,104500.0,104490.0,0.21054618]
[1747668482785,0.19495692,104500.0,104490.0,0.16054618]
[1747668482978,0.01913792,104500.0,104490.0,0.53164822]
[1747668483198,0.01913737,104500.0,104490.0,0.52925595]
[1747668483329,0.03827548,104500.0,104490.0,0.52925595]
[1747668483530,0.23923231,104500.0,104490.0,0.52925595]
[1747668484433,0.23923313,104500.0,104490.0,0.52925595]
[1747668485337,0.22966431,104500.0,104490.0,0.5196863]
[1747668485540,0.20095692,104500.0,104490.0,0.34]
[1747668485741,0.20095692,104500.0,104490.0,0.34957029]
[1747668485949,0.26495692,104500.0,104490.0,0.34]
[1747668486777,0.26407598,104490.0,104480.0,0.3672109]
[1747668486993,0.26407598,104490.0,104480.0,0.0272109]
[1747668487357,0.36138538,104490.0,104480.0,0.0021436]
[1747668487917,0.35538538,104490.0,104480.0,0.0041436]
[1747668488342,0.35538538,104490.0,104480.0,0.0021436]
[1747668489023,0.35538538,104490.0,104480.0,0.0041436]
[1747668489226,0.35538538,104490.0,104480.0,0.0021436]
[1747668489641,0.35738538,104490.0,104480.0,0.0021436]
[1747668489845,0.35738538,104490.0,104480.0,0.02657924]
[1747668490057,0.26207598,104490.0,104480.0,0.02657924]
[1747668490269,0.26207598,104490.0,104480.0,0.0021436]
[1747668491332,0.26007598,104490.0,104480.0,0.0021436]
[1747668491553,0.22807598,104490.0,104480.0,0.3421436]
[1747668492386,0.25907598,104490.0,104480.0,0.3421436]
[1747668492597,0.25907598,104490.0,104480.0,0.34520464]
[1747668493526,0.25907598,104490.0,104480.0,0.36956654]
[1747668495438,0.25307598,104490.0,104480.0,0.36956654]
[1747668501545,0.25307598,104490.0,104480.0,0.02956654]
[1747668503340,0.53818538,104490.0,104480.0,0.00520464]
[1747668503940,0.53818538,104490.0,104480.0,0.0021436]
[1747668505111,0.25664599,104490.0,104480.0,0.0117148]
[1747668505342,0.22011628,104490.0,104480.0,0.55510271]
[1747668505569,0.22011628,104490.0,104480.0,0.57185187]
[1747668505790,0.22011628,104490.0,104480.0,0.57185205]
[1747668506061,0.00956946,104490.0,104480.0,0.58142216]
[1747668506287,0.03827932,104490.0,104480.0,0.61192216]
[1747668506933,0.04784952,104490.0,104480.0,0.61192216]
[1747668507412,0.23925622,104490.0,104480.0,0.58142216]
[1747668507993,0.23925622,104490.0,104480.0,0.58448297]
[1747668508224,0.22968648,104490.0,104480.0,0.56534166]
[1747668508426,0.22011647,104490.0,104480.0,0.56534166]
[1747668509060,0.21054636,104490.0,104480.0,0.55577073]
[1747668509270,0.24174636,104490.0,104480.0,0.55449073]
[1747668509470,0.24174636,104490.0,104480.0,0.54491971]
[1747668510431,0.26397616,104490.0,104480.0,0.34392441]
[1747668510947,0.25797616,104490.0,104480.0,0.34392441]
[1747668511786,0.25797616,104490.0,104480.0,0.5449198]
[1747668512008,0.25797616,104490.0,104480.0,0.34392441]
[1747668516406,0.25797616,104490.0,104480.0,0.14090599]
[1747668516630,0.25797616,104490.0,104480.0,0.00306081]
[1747668518758,0.25197616,104490.0,104480.0,0.00306081]
[1747668519575,0.25197616,104490.0,104480.0,0.194485]
[1747668519785,0.18897616,104490.0,104480.0,0.194485]
[1747668519984,0.18897616,104490.0,104480.0,0.20644878]
[1747668520188,0.18897616,104490.0,104480.0,0.2040562]
[1747668520550,0.17940587,104490.0,104480.0,0.22319824]
[1747668520783,0.18897607,104490.0,104480.0,0.23276908]
[1747668520969,0.18897607,104490.0,104480.0,0.22319833]
[1747668521277,0.18897607,104490.0,104480.0,0.21362731]
[1747668521419,0.18897607,104490.0,104480.0,0.2040562]
[1747668521813,0.18897607,104490.0,104480.0,0.21362731]
[1747668523003,0.18897607,104490.0,104480.0,0.22319824]
[1747668523177,0.18897607,104490.0,104480.0,0.21362731]
[1747668525930,0.002,104510.0,104500.0,0.21052602]
[1747668526129,0.01156809,104510.0,104500.0,0.81359798]
[1747668526335,0.02470382,104510.0,104500.0,0.80920518]
[1747668526537,0.01913756,104500.0,104490.0,0.43736544]
[1747668526739,0.22966321,104500.0,104490.0,0.28871527]
[1747668526945,0.03827566,104500.0,104490.0,0.50165484]
[1747668527540,0.03827557,104500.0,104490.0,0.51122495]
[1747668527766,0.03827557,104500.0,104490.0,0.51322495]
[1747668528062,0.03827557,104500.0,104490.0,0.51628576]
[1747668528484,0.22966376,104500.0,104490.0,0.50671611]
[1747668528723,0.03827621,104500.0,104490.0,0.52585568]
[1747668528924,0.25259539,104500.0,104490.0,0.20603679]
[1747668529134,0.2740262,104500.0,104490.0,0.20086081]
[1747668529343,0.2740262,104500.0,104490.0,0.40183697]
[1747668529550,0.26445692,104500.0,104490.0,0.20803697]
[1747668529751,0.26445692,104500.0,104490.0,0.21760717]
[1747668529926,0.23345692,104500.0,104490.0,0.22717718]
[1747668530172,0.23345692,104500.0,104490.0,0.23674701]
[1747668530375,0.20095692,104500.0,104490.0,0.23674701]
[1747668530578,0.20095692,104500.0,104490.0,0.24631675]
[1747668530784,0.20095692,104500.0,104490.0,0.23674701]
[1747668531000,0.23345692,104500.0,104490.0,0.22717718]
[1747668532037,0.24302602,104500.0,104490.0,0.23674701]
[1747668532450,0.0287072,104500.0,104490.0,0.24631666]
[1747668533020,0.22966412,104500.0,104490.0,0.24631666]
[1747668533225,0.22966412,104500.0,104490.0,0.23674701]
[1747668534044,0.22009502,104500.0,104490.0,0.23674701]
[1747668534856,0.22966412,104500.0,104490.0,0.23674701]
[1747668535072,0.22966412,104500.0,104490.0,0.24631675]
[1747668535212,0.01913792,104500.0,104490.0,0.24631611]
[1747668535426,0.02870711,104500.0,104490.0,0.24631611]
[1747668535896,0.03827648,104500.0,104490.0,0.24631611]
[1747668536653,0.22966403,104500.0,104490.0,0.24631611]
[1747668537067,0.22966403,104500.0,104490.0,0.23674646]
[1747668537270,0.26246403,104500.0,104490.0,0.22717672]
[1747668537472,0.29336403,104500.0,104490.0,0.56717672]
[1747668537677,0.29336403,104500.0,104490.0,0.73210668]
[1747668537678,0.27422611,104500.0,104490.0,0.73210668]
[1747668537879,0.27422611,104500.0,104490.0,0.74167688]
[1747668538085,0.27422611,104500.0,104490.0,0.75124699]
[1747668538298,0.27422611,104500.0,104490.0,0.20070081]
[1747668538506,0.27422611,104500.0,104490.0,0.54070081]
[1747668541748,0.26465692,104500.0,104490.0,0.54070081]
[1747668543771,0.26465692,104500.0,104490.0,0.76081663]
[1747668543964,0.23375692,104500.0,104490.0,0.76081663]
[1747668544168,0.23375692,104500.0,104490.0,0.74167688]
[1747668544339,0.23375692,104500.0,104490.0,0.75124699]
[1747668545145,0.26565692,104500.0,104490.0,0.75124699]
[1747668545351,0.26565692,104500.0,104490.0,0.54070081]
[1747668545688,0.26565692,104500.0,104490.0,0.00706081]
[1747668547109,0.26565692,104500.0,104490.0,0.00506081]
[1747668548781,0.26565692,104500.0,104490.0,0.00306081]
[1747668549203,0.55660632,104500.0,104490.0,0.00306081]
[1747668549413,0.75024632,104500.0,104490.0,0.00306081]
[1747668549741,1.00450604,104500.0,104490.0,0.00306081]
[1747668549942,0.7552178,104500.0,104490.0,0.00306081]
[1747668550372,1.01904689,104500.0,104490.0,0.00306081]
[1747668550486,0.7552178,104500.0,104490.0,0.00306081]
[1747668550691,0.35339695,104500.0,104490.0,0.00306081]
[1747668551093,0.74099695,104500.0,104490.0,0.00306081]
[1747668551833,0.74299695,104500.0,104490.0,0.00306081]
[1747668552187,0.74699695,104500.0,104490.0,0.00406081]
[1747668552715,0.35739695,104500.0,104490.0,0.001]
[1747668552915,0.74899695,104500.0,104490.0,0.002]
[1747668554669,1.01282604,104500.0,104490.0,0.002]
[1747668554928,1.02736689,104500.0,104490.0,0.002]
[1747668556295,0.7635378,104500.0,104490.0,0.002]
[1747668556505,0.74899695,104500.0,104490.0,0.002]
[1747668557284,0.74299695,104500.0,104490.0,0.002]
[1747668557852,0.74271695,104500.0,104490.0,0.002]
[1747668558994,0.74275695,104500.0,104490.0,0.002]
[1747668559196,0.35539695,104500.0,104490.0,0.002]
[1747668559368,0.74275695,104500.0,104490.0,0.002]
[1747668559752,0.35539695,104500.0,104490.0,0.002]
[1747668560513,0.25808755,104500.0,104490.0,0.002]
[1747668561667,0.25808755,104500.0,104490.0,0.002]
[1747668562163,0.35539695,104500.0,104490.0,0.002]
[1747668563857,0.3699378,104500.0,104490.0,0.002]
[1747668564863,0.3639378,104500.0,104490.0,0.002]
[1747668566129,0.62776689,104500.0,104490.0,0.002]
[1747668567007,0.3639378,104500.0,104490.0,0.002]
[1747668567608,0.7512978,104500.0,104490.0,0.002]
[1747668570196,0.3639378,104500.0,104490.0,0.002]
[1747668570409,0.7512978,104500.0,104490.0,0.002]
[1747668571175,1.01512689,104500.0,104490.0,0.002]
[1747668572147,0.7512978,104500.0,104490.0,0.002]
[1747668572590,0.3639378,104500.0,104490.0,0.002]
[1747668572819,0.5516178,104500.0,104490.0,0.002]
[1747668573387,0.81544689,104500.0,104490.0,0.002]
[1747668574314,0.3579378,104500.0,104490.0,0.002]
[1747668574483,0.7452978,104500.0,104490.0,0.002]
[1747668574685,1.00912689,104500.0,104490.0,0.002]
[1747668577369,0.62176689,104500.0,104490.0,0.002]
[1747668577565,1.00912689,104500.0,104490.0,0.002]
[1747668577910,0.00957011,104490.0,104480.0,0.00152]
[1747668578122,0.36238538,104490.0,104480.0,0.00152]
[1747668578537,0.62621447,104490.0,104480.0,0.00152]
[1747668578925,0.64075532,104490.0,104480.0,0.00152]
[1747668579137,1.02811532,104490.0,104480.0,0.00152]
[1747668579340,1.03011532,104490.0,104480.0,0.00152]
[1747668580365,0.75871612,104490.0,104480.0,0.01078185]
[1747668580785,0.76828623,104490.0,104480.0,0.01078185]
[1747668587635,1.03211532,104490.0,104480.0,0.01078185]
[1747668588106,1.02611532,104490.0,104480.0,0.01078185]
[1747668591738,0.76228623,104490.0,104480.0,0.01078185]
[1747668591959,0.93537124,104490.0,104480.0,0.01078185]
[1747668595908,1.56026565,104490.0,104480.0,0.01078185]
[1747668596316,1.38718064,104490.0,104480.0,0.01078185]
[1747668596844,1.28787124,104490.0,104480.0,0.01078185]
[1747668597455,1.46095625,104490.0,104480.0,0.01078185]
[1747668597655,1.64746267,104490.0,104480.0,0.01178185]
[1747668598068,1.64546267,104490.0,104480.0,0.01178185]
[1747668598289,1.75777207,104490.0,104480.0,0.01278185]
[1747668598480,1.67046267,104490.0,104480.0,0.01278185]
[1747668598690,1.77126267,104490.0,104480.0,0.01278185]
[1747668599556,1.76126267,104490.0,104480.0,0.01078185]
[1747668599742,6.95902067,104490.0,104480.0,0.01078185]
[1747668599958,6.96702067,104490.0,104480.0,0.01278185]
[1747668600160,7.05433007,104490.0,104480.0,0.01278185]
[1747668600362,0.61668611,104470.0,104460.0,0.002]
[1747668600569,1.38965458,104470.0,104460.0,0.002]
[1747668601029,1.41839458,104470.0,104460.0,0.002]
[1747668601695,1.41839458,104470.0,104460.0,0.00182325]
[1747668601944,1.48397706,104470.0,104460.0,0.00182325]
[1747668602162,1.42239458,104470.0,104460.0,0.00182325]
[1747668602377,1.42339458,104470.0,104460.0,0.00182325]
[1747668602798,1.42339458,104470.0,104460.0,0.00164647]
[1747668603251,1.86540598,104470.0,104460.0,0.00164647]
[1747668603483,0.90480551,104450.0,104440.0,0.002]
[1747668603693,1.11992431,104450.0,104440.0,0.002]
[1747668603896,1.39993491,104450.0,104440.0,0.002]
[1747668604112,1.05993491,104450.0,104440.0,0.002]
[1747668604257,0.79609669,104450.0,104440.0,0.002]
[1747668604470,0.30793584,104450.0,104440.0,0.002]
[1747668604839,0.30793584,104450.0,104440.0,0.00247892]
[1747668604840,0.61701491,104450.0,104440.0,0.00247892]
[1747668605232,0.30793584,104450.0,104440.0,0.06597892]
[1747668605446,0.21062644,104450.0,104440.0,0.40597892]
[1747668605870,0.21562644,104450.0,104440.0,0.06597892]
[1747668606082,0.21562644,104450.0,104440.0,0.00247892]
[1747668606283,0.31293584,104450.0,104440.0,0.00247892]
[1747668606668,0.30793584,104450.0,104440.0,0.00247892]
[1747668607116,0.30993584,104450.0,104440.0,0.00247892]
[1747668607956,0.21262644,104450.0,104440.0,0.06407892]
[1747668608175,0.21262644,104450.0,104440.0,0.40407892]
[1747668608386,0.21262644,104450.0,104440.0,0.81267892]
[1747668608598,0.20305267,104450.0,104440.0,0.59557643]
[1747668608807,0.20305294,104450.0,104440.0,0.40407892]
[1747668609016,0.19347917,104450.0,104440.0,0.40714111]
[1747668609440,0.19347917,104450.0,104440.0,0.59863862]
[1747668609654,0.19347917,104450.0,104440.0,0.6082134]
[1747668609877,0.01157331,104450.0,104440.0,0.73424613]
[1747668610093,0.002,104450.0,104440.0,1.99846453]
[1747668610300,0.0191447,104460.0,104450.0,0.56829993]
[1747668610508,0.0191447,104460.0,104450.0,1.77853633]
[1747668610718,0.0191447,104460.0,104450.0,1.71208633]
[1747668611188,0.02871728,104460.0,104450.0,1.71208633]
[1747668611395,0.0191447,104460.0,104450.0,1.71208633]
[1747668611613,0.00957139,104470.0,104460.0,0.55060572]
[1747668611830,0.21058304,104480.0,104470.0,0.21058629]
[1747668612074,0.22015379,104480.0,104470.0,0.49200394]
[1747668612285,0.20054636,104490.0,104480.0,0.25402419]
[1747668612487,0.20054636,104490.0,104480.0,0.37047572]
[1747668612488,0.21968584,104490.0,104480.0,0.37047572]
[1747668612695,0.03070949,104490.0,104480.0,0.45961712]
[1747668612907,0.02113948,104490.0,104480.0,0.45961712]
[1747668613111,0.002,104490.0,104480.0,0.45961712]
[1747668613323,0.01156946,104490.0,104480.0,2.44749369]
[1747668613529,0.0117133,104490.0,104480.0,2.41047469]
[1747668613742,0.00214384,104490.0,104480.0,2.64718269]
[1747668613941,0.00214384,104490.0,104480.0,2.64818269]
[1747668614279,0.0127133,104490.0,104480.0,2.64818269]
[1747668614486,0.00314384,104490.0,104480.0,2.66272354]
[1747668615111,0.00314384,104490.0,104480.0,2.66172354]
[1747668615495,0.00314384,104490.0,104480.0,2.66372354]
[1747668616283,0.02685031,104500.0,104490.0,0.62401564]
[1747668616528,0.00771257,104500.0,104490.0,2.89079704]
[1747668616962,0.20293866,104510.0,104500.0,0.61272566]
[1747668616963,0.002,104510.0,104500.0,0.61272566]
[1747668617186,0.02113609,104510.0,104500.0,1.83701579]
[1747668617321,0.03070363,104510.0,104500.0,1.83701579]
[1747668617524,0.01156763,104510.0,104500.0,1.83701579]
[1747668617723,0.002,104510.0,104500.0,1.83701579]
[1747668617932,0.03370778,104520.0,104510.0,0.63771437]
[1747668618162,0.03370778,104520.0,104510.0,5.57981877]
[1747668618389,0.06240876,104520.0,104510.0,2.84834828]
[1747668618583,0.0528414,104520.0,104510.0,3.06100419]
[1747668618769,0.05293322,104520.0,104510.0,3.06100419]
[1747668619105,0.0337996,104520.0,104510.0,3.06100419]
[1747668619279,0.0337996,104520.0,104510.0,3.06200419]
[1747668619691,0.0337996,104520.0,104510.0,3.06100419]
[1747668619886,0.0337996,104520.0,104510.0,3.07854504]
[1747668620050,0.0347996,104520.0,104510.0,3.08154504]
[1747668620659,0.22615053,104520.0,104510.0,3.08154504]
[1747668620891,0.22615053,104520.0,104510.0,3.04327249]
[1747668621120,0.22615053,104520.0,104510.0,3.08154504]
[1747668621334,0.0347996,104520.0,104510.0,3.08154504]
[1747668622479,0.03471177,104520.0,104510.0,3.08154504]
[1747668624214,0.02871177,104520.0,104510.0,3.08154504]
[1747668624965,0.22962942,104520.0,104510.0,3.06240922]
[1747668625169,0.23919714,104520.0,104510.0,1.4465864]
[1747668625444,0.23919714,104520.0,104510.0,1.6711264]
[1747668625571,0.23919714,104520.0,104510.0,2.7714264]
[1747668625767,0.2200627,104520.0,104510.0,2.9819321]
[1747668626008,0.02072177,104520.0,104510.0,3.00106792]
[1747668626243,0.02072177,104520.0,104510.0,3.01560877]
[1747668626825,0.02072177,104520.0,104510.0,2.62852877]
[1747668626995,0.02072177,104520.0,104510.0,3.01532877]
[1747668627631,0.2120727,104520.0,104510.0,3.01532877]
[1747668629022,0.02072177,104520.0,104510.0,3.01532877]
[1747668629426,0.00109182,104520.0,104510.0,3.01532877]
[1747668629576,0.00109182,104520.0,104510.0,2.83643492]
[1747668629777,0.00109182,104520.0,104510.0,2.67532877]
[1747668630505,0.39958175,104530.0,104520.0,0.26141829]
[1747668630679,0.40914764,104530.0,104520.0,4.31472778]
[1747668630881,0.4187139,104530.0,104520.0,4.30275478]
[1747668631110,0.40914764,104530.0,104520.0,4.31232205]
[1747668631311,0.40914755,104530.0,104520.0,4.31232205]
[1747668631553,0.40914755,104530.0,104520.0,4.65232214]
[1747668631754,0.40914755,104530.0,104520.0,4.66188941]
[1747668631952,0.40314755,104530.0,104520.0,4.66488941]
[1747668632176,0.41271372,104530.0,104520.0,4.65732214]
[1747668632361,0.41271372,104530.0,104520.0,4.71775478]
[1747668633165,0.19268251,104530.0,104520.0,4.71775478]
[1747668633423,0.36977103,104530.0,104520.0,4.73688904]
[1747668633706,0.36020514,104530.0,104520.0,5.11400205]
[1747668633914,0.36020514,104530.0,104520.0,5.12356913]
[1747668633915,0.33153535,104530.0,104520.0,5.12356913]
[1747668634119,0.33153535,104530.0,104520.0,5.12356923]
[1747668634509,0.33153535,104530.0,104520.0,4.81116695]
[1747668634510,0.00956599,104530.0,104520.0,4.81116695]
[1747668634751,0.20089862,104530.0,104520.0,4.80159987]
[1747668635266,0.21046442,104530.0,104520.0,4.81116695]
[1747668635469,0.21046442,104530.0,104520.0,4.78246542]
[1747668635679,0.22959685,104530.0,104520.0,4.16291951]
[1747668635900,0.27156561,104530.0,104520.0,1.36088804]
[1747668636112,0.27156561,104530.0,104520.0,1.70088804]
[1747668636333,0.27156561,104530.0,104520.0,1.60357864]
[1747668636747,0.2200315,104530.0,104520.0,1.70088804]
[1747668636951,0.2200315,104530.0,104520.0,0.93054904]
[1747668637155,0.21046542,104530.0,104520.0,0.93054904]
[1747668638046,0.21046542,104530.0,104520.0,0.69750242]
[1747668638384,0.24206542,104530.0,104520.0,0.55925342]
[1747668638598,0.27456542,104530.0,104520.0,0.55925342]
[1747668639046,0.27456542,104530.0,104520.0,0.56231298]